[Event "Dutch Internet Championship Final"]
[Site "playchess.com #038132"]
[Date "2011.06.18"]
[Round "1.2"]
[White "Reinderman"]
[Black "Zgorl"]
[Result "1/2-1/2"]
[ECO "A29"]
[WhiteElo "2489"]
[BlackElo "2463"]
[PlyCount "87"]
[EventDate "2011.06.18"]
[EventType "match (blitz)"]
[TimeControl "180+3"]

1. c4 {[%emt 0:00:02]} e5 {[%emt 0:00:02]} 2. g3 {[%emt 0:00:01]} Nf6 {[%emt 0:
00:01]} 3. Bg2 {[%emt 0:00:01]} Nc6 {[%emt 0:00:01]} 4. Nc3 {[%emt 0:00:01]}
Bb4 {[%emt 0:00:01]} 5. Nd5 {[%emt 0:00:01]} O-O {[%emt 0:00:03]} 6. Nf3 {
[%emt 0:00:01]} a5 {[%emt 0:00:04]} 7. O-O {[%emt 0:00:02]} Re8 {[%emt 0:00:02]
} 8. d3 {[%emt 0:00:09]} h6 {[%emt 0:00:01]} 9. e3 {[%emt 0:00:08]} Bf8 {[%emt
0:00:06]} 10. d4 {[%emt 0:00:16]} exd4 {[%emt 0:00:06]} 11. Nxf6+ {[%emt 0:00:
04]} Qxf6 {[%emt 0:00:02]} 12. exd4 {[%emt 0:00:01]} d6 {[%emt 0:00:05]} 13. h3
{[%emt 0:00:06]} Bf5 {[%emt 0:00:02]} 14. Be3 {[%emt 0:00:08]} a4 {[%emt 0:00:
07]} 15. Qd2 {[%emt 0:00:06]} Be4 {[%emt 0:00:08]} 16. Ne1 {[%emt 0:00:10]}
Bxg2 {[%emt 0:00:01]} 17. Kxg2 {[%emt 0:00:02]} g6 {[%emt 0:00:28]} 18. Nf3 {
[%emt 0:00:14]} Bg7 {[%emt 0:00:06]} 19. Rad1 {[%emt 0:00:10]} Kh7 {[%emt 0:00:
03]} 20. Nh2 {[%emt 0:00:05]} h5 {[%emt 0:00:11]} 21. Nf3 {[%emt 0:00:02]} Kg8
{[%emt 0:00:12]} 22. Rfe1 {[%emt 0:00:16]} Qf5 {[%emt 0:00:26]} 23. Bf4 {[%emt
0:00:16]} Qa5 {[%emt 0:00:10]} 24. d5 {[%emt 0:00:23]} Qxd2 {[%emt 0:00:04]}
25. Bxd2 {[%emt 0:00:03]} Nd4 {[%emt 0:00:07]} 26. Bc1 {[%emt 0:00:31]} Nxf3 {
[%emt 0:00:25]} 27. Kxf3 {[%emt 0:00:01]} Kf8 {[%emt 0:00:01]} 28. Re2 {[%emt
0:00:07]} Rxe2 {[%emt 0:00:11]} 29. Kxe2 {[%emt 0:00:01]} Ke7 {[%emt 0:00:01]}
30. Kd3 {[%emt 0:00:04]} Kd7 {[%emt 0:00:03]} 31. Re1 {[%emt 0:00:01]} Bf6 {
[%emt 0:00:08]} 32. Re4 {[%emt 0:00:10]} c6 {[%emt 0:00:06]} 33. dxc6+ {[%emt
0:00:15]} bxc6 {[%emt 0:00:00]} 34. Kc2 {[%emt 0:00:01]} c5 {[%emt 0:00:16]}
35. Rf4 {[%emt 0:00:14]} Ke6 {[%emt 0:00:12]} 36. Bd2 {[%emt 0:00:02]} Rb8 {
[%emt 0:00:16]} 37. Bc3 {[%emt 0:00:02]} Bxc3 {[%emt 0:00:01]} 38. Kxc3 {[%emt
0:00:01]} f5 {[%emt 0:00:01]} 39. Rf3 {[%emt 0:00:01]} h4 {[%emt 0:00:27]} 40.
Re3+ {[%emt 0:00:11]} Kf6 {[%emt 0:00:02]} 41. Rd3 {[%emt 0:00:01]} Ke6 {[%emt
0:00:01]} 42. Re3+ {[%emt 0:00:01]} Kf6 {[%emt 0:00:02]} 43. Rd3 {[%emt 0:00:
01]} Ke6 {[%emt 0:00:03]} 44. Re3+ {[%emt 0:00:01] (Lag: Av=0.92s, max=12.0s)}
1/2-1/2

[Event "Dutch Internet Championship Final"]
[Site "playchess.com #038132"]
[Date "2011.06.18"]
[Round "1.2"]
[White "kingloek"]
[Black "Snorrebaard"]
[Result "1-0"]
[ECO "E97"]
[WhiteElo "2907"]
[BlackElo "1855"]
[PlyCount "75"]
[EventDate "2011.06.18"]
[EventType "match (blitz)"]
[TimeControl "180+3"]

1. d4 {[%emt 0:00:08]} d6 {[%emt 0:00:07]} 2. Nf3 {[%emt 0:00:09]} g6 {[%emt 0:
00:06]} 3. c4 {[%emt 0:00:02]} Bg7 {[%emt 0:00:02]} 4. e4 {[%emt 0:00:03]} Nf6
{[%emt 0:00:01]} 5. Nc3 {[%emt 0:00:02]} O-O {[%emt 0:00:03]} 6. Be2 {[%emt 0:
00:00]} e5 {[%emt 0:00:01]} 7. O-O {[%emt 0:00:01]} Nc6 {[%emt 0:00:00]} 8. d5
{[%emt 0:00:01]} Ne7 {[%emt 0:00:00]} 9. b4 {[%emt 0:00:00]} Nd7 {[%emt 0:00:
06]} 10. a4 {[%emt 0:00:04]} f5 {[%emt 0:00:01]} 11. Ng5 {[%emt 0:00:03]} Nf6 {
[%emt 0:00:05]} 12. f3 {[%emt 0:00:02]} f4 {[%emt 0:00:06]} 13. b5 {[%emt 0:00:
08]} h6 {[%emt 0:00:24]} 14. Ne6 {[%emt 0:00:01]} Bxe6 {[%emt 0:00:01]} 15.
dxe6 {[%emt 0:00:00]} g5 {[%emt 0:00:13]} 16. Ba3 {[%emt 0:00:11]} b6 {[%emt 0:
00:32]} 17. Nd5 {[%emt 0:00:02]} Kh8 {[%emt 0:00:24]} 18. a5 {[%emt 0:00:18]}
g4 {[%emt 0:00:09]} 19. Bb4 {[%emt 0:00:07]} g3 {[%emt 0:00:29]} 20. h3 {[%emt
0:00:02]} c6 {[%emt 0:00:40]} 21. Nxe7 {[%emt 0:00:08]} Qxe7 {[%emt 0:00:08]}
22. Bxd6 {[%emt 0:00:02]} Qxe6 {[%emt 0:00:04]} 23. Bxf8 {[%emt 0:00:06]} Bxf8
{[%emt 0:00:01]} 24. Kh1 {[%emt 0:00:05]} bxa5 {[%emt 0:00:22]} 25. Rxa5 {
[%emt 0:00:03]} Nh7 {[%emt 0:00:01]} 26. Ra6 {[%emt 0:00:05]} Ng5 {[%emt 0:00:
05]} 27. Rxc6 {[%emt 0:00:02]} Qf7 {[%emt 0:00:05]} 28. Qd5 {[%emt 0:00:03]}
Qh5 {[%emt 0:00:04]} 29. Qxe5+ {[%emt 0:00:04]} Bg7 {[%emt 0:00:01]} 30. Qf5 {
[%emt 0:00:05]} Rf8 {[%emt 0:00:02]} 31. Qg4 {[%emt 0:00:02]} Qf7 {[%emt 0:00:
04]} 32. e5 {[%emt 0:00:09]} Bxe5 {[%emt 0:00:05]} 33. Bd3 {[%emt 0:00:01]} Bg7
{[%emt 0:00:03]} 34. h4 {[%emt 0:00:14] .} Rd8 {[%emt 0:00:01]} 35. hxg5 {
[%emt 0:00:11]} Rxd3 {[%emt 0:00:01]} 36. gxh6 {[%emt 0:00:06]} Bf6 {[%emt 0:
00:07]} 37. Qf5 {[%emt 0:00:04]} Rd8 {[%emt 0:00:03]} 38. Rxf6 {[%emt 0:00:03]
Snorrebaard resigns  (Lag: Av=0.51s, max=2.1s)} 1-0

[Event "Dutch Internet Championship Final"]
[Site "playchess.com #038132"]
[Date "2011.06.18"]
[Round "1.1"]
[White "Christov"]
[Black "Kemps"]
[Result "1-0"]
[ECO "B82"]
[WhiteElo "2469"]
[BlackElo "2403"]
[PlyCount "129"]
[EventDate "2011.06.18"]
[EventType "match (blitz)"]
[TimeControl "180+3"]

1. e4 {[%emt 0:00:02]} c5 {[%emt 0:00:01]} 2. Nf3 {[%emt 0:00:01]} e6 {[%emt 0:
00:01]} 3. Nc3 {[%emt 0:00:01]} a6 {[%emt 0:00:01]} 4. d4 {[%emt 0:00:01]} cxd4
{[%emt 0:00:01]} 5. Nxd4 {[%emt 0:00:00]} Qc7 {[%emt 0:00:00]} 6. Bd3 {[%emt 0:
00:02]} Nf6 {[%emt 0:00:02]} 7. Qe2 {[%emt 0:00:03]} d6 {[%emt 0:00:07]} 8. f4
{[%emt 0:00:04]} Be7 {[%emt 0:00:05]} 9. O-O {[%emt 0:00:14]} Nbd7 {[%emt 0:00:
09]} 10. Kh1 {[%emt 0:00:09]} b5 {[%emt 0:00:02]} 11. a4 {[%emt 0:00:03]} b4 {
[%emt 0:00:02]} 12. Na2 {[%emt 0:00:01]} d5 {[%emt 0:00:20]} 13. e5 {[%emt 0:
00:05]} Ne4 {[%emt 0:00:01]} 14. Bxe4 {[%emt 0:00:19]} dxe4 {[%emt 0:00:01]}
15. Be3 {[%emt 0:00:01]} Rb8 {[%emt 0:00:08]} 16. c3 {[%emt 0:00:05]} b3 {
[%emt 0:00:13]} 17. Nc1 {[%emt 0:00:02]} Nc5 {[%emt 0:00:01]} 18. Qc4 {[%emt 0:
00:14]} Bb7 {[%emt 0:00:06]} 19. Qe2 {[%emt 0:00:30]} Bd5 {[%emt 0:00:10]} 20.
a5 {[%emt 0:00:29]} g6 {[%emt 0:00:12]} 21. c4 {[%emt 0:00:05]} Ba8 {[%emt 0:
00:05]} 22. Ra3 {[%emt 0:00:09]} O-O {[%emt 0:00:04]} 23. Ncxb3 {[%emt 0:00:04]
} Nd3 {[%emt 0:00:03]} 24. Ra2 {[%emt 0:00:04]} Qxc4 {[%emt 0:00:02]} 25. Rc1 {
[%emt 0:00:25]} Qd5 {[%emt 0:00:08]} 26. Rc3 {[%emt 0:00:04]} Bb4 {[%emt 0:00:
14]} 27. Rc7 {[%emt 0:00:05]} Rfc8 {[%emt 0:00:09]} 28. Rxc8+ {[%emt 0:00:07]}
Rxc8 {[%emt 0:00:01]} 29. Ra1 {[%emt 0:00:00]} Be7 {[%emt 0:00:13]} 30. h3 {
[%emt 0:00:04]} Rb8 {[%emt 0:00:02]} 31. Qc2 {[%emt 0:00:07]} Bh4 {[%emt 0:00:
28]} 32. Kh2 {[%emt 0:00:03]} Bb7 {[%emt 0:00:13]} 33. Rd1 {[%emt 0:00:21]} Rc8
{[%emt 0:00:05]} 34. Qe2 {[%emt 0:00:01]} Be7 {[%emt 0:00:11]} 35. Qd2 {[%emt
0:00:16]} Bb4 {[%emt 0:00:14]} 36. Qe2 {[%emt 0:00:01]} Bf8 {[%emt 0:00:02]}
37. Qd2 {[%emt 0:00:02]} Rc4 {[%emt 0:00:05]} 38. Qe2 {[%emt 0:00:02]} Rb4 {
[%emt 0:00:04]} 39. Qc2 {[%emt 0:00:01]} Rc4 {[%emt 0:00:02]} 40. Qe2 {[%emt 0:
00:01]} h5 {[%emt 0:00:04]} 41. Qd2 {[%emt 0:00:02]} Rc8 {[%emt 0:00:04]} 42.
Qe2 {[%emt 0:00:01]} Bh6 {[%emt 0:00:02]} 43. Rf1 {[%emt 0:00:03]} h4 {[%emt 0:
00:03]} 44. Qg4 {[%emt 0:00:03]} Nxb2 {[%emt 0:00:14]} 45. Qxh4 {[%emt 0:00:02]
} Bg7 {[%emt 0:00:01]} 46. Rb1 {[%emt 0:00:03]} Nc4 {[%emt 0:00:02]} 47. Bg1 {
[%emt 0:00:01]} e3 {[%emt 0:00:02]} 48. Qg3 {[%emt 0:00:04]} Nd2 {[%emt 0:00:
10]} 49. Nxd2 {[%emt 0:00:02]} exd2 {[%emt 0:00:01]} 50. Rd1 {[%emt 0:00:01]}
Bh6 {[%emt 0:00:14]} 51. Nf3 {[%emt 0:00:03]} Qe4 {[%emt 0:00:02]} 52. Ng5 {
[%emt 0:00:04]} Qe2 {[%emt 0:00:03]} 53. Qg4 {[%emt 0:00:02]} Qxg4 {[%emt 0:00:
22]} 54. hxg4 {[%emt 0:00:01]} Rc2 {[%emt 0:00:01]} 55. Be3 {[%emt 0:00:01]}
Bxg5 {[%emt 0:00:01]} 56. fxg5 {[%emt 0:00:01]} Rc4 {[%emt 0:00:01]} 57. Rxd2 {
[%emt 0:00:02]} Rxg4 {[%emt 0:00:01]} 58. g3 {[%emt 0:00:01]} Bd5 {[%emt 0:00:
01]} 59. Bf4 {[%emt 0:00:01]} Kf8 {[%emt 0:00:05]} 60. Rf2 {[%emt 0:00:03]} Be4
{[%emt 0:00:02]} 61. Rb2 {[%emt 0:00:03]} Kg7 {[%emt 0:00:02]} 62. Rb6 {[%emt
0:00:02]} Bd3 {[%emt 0:00:01]} 63. Kg2 {[%emt 0:00:03]} Be4+ {[%emt 0:00:02]}
64. Kf2 {[%emt 0:00:01]} Bc2 {[%emt 0:00:06]} 65. Rxa6 {[%emt 0:00:02] Kemps
resigns  (Lag: Av=0.37s, max=0.8s)} 1-0

[Event "Dutch Internet Championship Final"]
[Site "playchess.com #038132"]
[Date "2011.06.18"]
[Round "1.1"]
[White "Rossetis"]
[Black "Jack Snipe"]
[Result "1/2-1/2"]
[ECO "C65"]
[WhiteElo "2475"]
[BlackElo "2457"]
[PlyCount "123"]
[EventDate "2011.06.18"]
[EventType "match (blitz)"]
[TimeControl "180+3"]

1. e4 {[%emt 0:00:01]} e5 {[%emt 0:00:01]} 2. Nf3 {[%emt 0:00:01]} Nc6 {[%emt
0:00:01]} 3. Bb5 {[%emt 0:00:01]} Nf6 {[%emt 0:00:02]} 4. Qe2 {[%emt 0:00:01]}
Be7 {[%emt 0:00:02]} 5. O-O {[%emt 0:00:02]} O-O {[%emt 0:00:02]} 6. c3 {[%emt
0:00:02]} d6 {[%emt 0:00:01]} 7. d3 {[%emt 0:00:03]} Bd7 {[%emt 0:00:02]} 8.
Re1 {[%emt 0:00:07]} Re8 {[%emt 0:00:04]} 9. Nbd2 {[%emt 0:00:06]} Bf8 {[%emt
0:00:04]} 10. Nf1 {[%emt 0:00:02]} g6 {[%emt 0:00:07]} 11. a3 {[%emt 0:00:09]}
Bg7 {[%emt 0:00:04]} 12. Bc4 {[%emt 0:00:01]} Qc8 {[%emt 0:00:29]} 13. Bg5 {
[%emt 0:00:15]} h6 {[%emt 0:00:05]} 14. Be3 {[%emt 0:00:03]} Be6 {[%emt 0:00:
16]} 15. Bxe6 {[%emt 0:00:11]} Qxe6 {[%emt 0:00:00]} 16. Rad1 {[%emt 0:00:02]}
d5 {[%emt 0:00:02]} 17. Bc1 {[%emt 0:00:06]} Rad8 {[%emt 0:00:04]} 18. Ng3 {
[%emt 0:00:07]} a6 {[%emt 0:00:16]} 19. h3 {[%emt 0:00:04]} dxe4 {[%emt 0:00:
30]} 20. dxe4 {[%emt 0:00:03]} Qb3 {[%emt 0:00:02]} 21. Nh2 {[%emt 0:00:25]}
Qb5 {[%emt 0:00:11]} 22. Qxb5 {[%emt 0:00:06]} axb5 {[%emt 0:00:00]} 23. Ng4 {
[%emt 0:00:04]} Nxg4 {[%emt 0:00:04]} 24. hxg4 {[%emt 0:00:00]} Na5 {[%emt 0:
00:03]} 25. Nf1 {[%emt 0:00:07]} Bf8 {[%emt 0:00:15]} 26. Ne3 {[%emt 0:00:09]}
c6 {[%emt 0:00:01]} 27. Kf1 {[%emt 0:00:08]} Nb3 {[%emt 0:00:15]} 28. Ke2 {
[%emt 0:00:09]} Be7 {[%emt 0:00:07]} 29. Nf1 {[%emt 0:00:03]} Bg5 {[%emt 0:00:
11]} 30. Bxg5 {[%emt 0:00:04]} hxg5 {[%emt 0:00:00]} 31. f3 {[%emt 0:00:13]}
Nc5 {[%emt 0:00:07]} 32. Rd2 {[%emt 0:00:26]} Rxd2+ {[%emt 0:00:09]} 33. Kxd2 {
[%emt 0:00:04]} Rd8+ {[%emt 0:00:22]} 34. Kc2 {[%emt 0:00:01]} Kg7 {[%emt 0:00:
00]} 35. Ne3 {[%emt 0:00:15]} Kf6 {[%emt 0:00:13]} 36. Rd1 {[%emt 0:00:03]}
Rxd1 {[%emt 0:00:02]} 37. Nxd1 {[%emt 0:00:02]} Ke7 {[%emt 0:00:01]} 38. Ne3 {
[%emt 0:00:02]} Ne6 {[%emt 0:00:04]} 39. c4 {[%emt 0:00:14]} bxc4 {[%emt 0:00:
16]} 40. Nxc4 {[%emt 0:00:02]} f6 {[%emt 0:00:01]} 41. Na5 {[%emt 0:00:14]}
Nd4+ {[%emt 0:00:03]} 42. Kd3 {[%emt 0:00:04]} b6 {[%emt 0:00:04]} 43. Nc4 {
[%emt 0:00:02]} b5 {[%emt 0:00:03]} 44. Ne3 {[%emt 0:00:03]} Kd6 {[%emt 0:00:
05]} 45. Nc2 {[%emt 0:00:01]} Ne6 {[%emt 0:00:03]} 46. Ne3 {[%emt 0:00:09]}
Nf4+ {[%emt 0:00:04]} 47. Kc3 {[%emt 0:00:03]} Ne2+ {[%emt 0:00:03]} 48. Kd3 {
[%emt 0:00:03]} Nf4+ {[%emt 0:00:02]} 49. Kc3 {[%emt 0:00:01] Jack Snipe doet
een remise aanbod} Ne2+ {[%emt 0:00:01]} 50. Kd2 {[%emt 0:00:03]} Nd4 {[%emt 0:
00:02]} 51. Kd3 {[%emt 0:00:03]} Ne6 {[%emt 0:00:02]} 52. b3 {[%emt 0:00:03]}
Nd4 {[%emt 0:00:04]} 53. Kc3 {[%emt 0:00:03]} Ne2+ {[%emt 0:00:06]} 54. Kb4 {
[%emt 0:00:06]} Nd4 {[%emt 0:00:05]} 55. a4 {[%emt 0:00:14]} Kc7 {[%emt 0:00:
03]} 56. axb5 {[%emt 0:00:03]} Nxb5 {[%emt 0:00:02]} 57. Kc5 {[%emt 0:00:02]}
Nd4 {[%emt 0:00:03]} 58. b4 {[%emt 0:00:03]} Ne6+ {[%emt 0:00:02]} 59. Kc4 {
[%emt 0:00:01]} Kd6 {[%emt 0:00:01]} 60. Kd3 {[%emt 0:00:03]} Nf4+ {[%emt 0:00:
01]} 61. Kc4 {[%emt 0:00:02] Rossetis doet een remise aanbod} Ne6 {[%emt 0:00:
01]} 62. Kd3 {[%emt 0:00:01] (Lag: Av=0.22s, max=0.5s)} 1/2-1/2

[Event "Dutch Internet Championship Final"]
[Site "playchess.com #038132"]
[Date "2011.06.18"]
[Round "1.1"]
[White "Enschede"]
[Black "Daanbrandenburg"]
[Result "1/2-1/2"]
[ECO "B66"]
[WhiteElo "2472"]
[BlackElo "2699"]
[PlyCount "86"]
[EventDate "2011.06.18"]
[EventType "match (blitz)"]
[TimeControl "180+3"]

1. e4 {[%emt 0:00:01]} c5 {[%emt 0:00:02]} 2. Nf3 {[%emt 0:00:01]} d6 {[%emt 0:
00:01]} 3. d4 {[%emt 0:00:01]} cxd4 {[%emt 0:00:00]} 4. Nxd4 {[%emt 0:00:01]}
Nf6 {[%emt 0:00:00]} 5. Nc3 {[%emt 0:00:01]} Nc6 {[%emt 0:00:01]} 6. Bg5 {
[%emt 0:00:01]} e6 {[%emt 0:00:01]} 7. Qd2 {[%emt 0:00:01]} a6 {[%emt 0:00:01]}
8. O-O-O {[%emt 0:00:01]} Bd7 {[%emt 0:00:00]} 9. f3 {[%emt 0:00:01]} Be7 {
[%emt 0:00:01]} 10. Be3 {[%emt 0:00:01]} b5 {[%emt 0:00:01]} 11. g4 {[%emt 0:
00:01]} h6 {[%emt 0:00:08]} 12. Nxc6 {[%emt 0:00:01]} Bxc6 {[%emt 0:00:01]} 13.
Ne2 {[%emt 0:00:01]} Rc8 {[%emt 0:00:03]} 14. Nd4 {[%emt 0:00:01]} Bb7 {[%emt
0:00:01]} 15. Rg1 {[%emt 0:00:00]} g5 {[%emt 0:00:21]} 16. Kb1 {[%emt 0:00:25]}
Qc7 {[%emt 0:00:10]} 17. h4 {[%emt 0:00:26]} Rg8 {[%emt 0:00:02]} 18. hxg5 {
[%emt 0:00:01]} hxg5 {[%emt 0:00:01]} 19. Bd3 {[%emt 0:00:41]} d5 {[%emt 0:00:
06]} 20. exd5 {[%emt 0:00:03]} Nxd5 {[%emt 0:00:03]} 21. Bf2 {[%emt 0:00:26]}
Nf4 {[%emt 0:00:45]} 22. Rge1 {[%emt 0:00:16]} Rd8 {[%emt 0:00:06]} 23. Qc1 {
[%emt 0:00:29]} Bc5 {[%emt 0:00:24]} 24. Be4 {[%emt 0:00:02]} Bd5 {[%emt 0:00:
53]} 25. c3 {[%emt 0:00:13]} Rh8 {[%emt 0:00:34]} 26. Bxd5 {[%emt 0:00:15]}
Rxd5 {[%emt 0:00:02]} 27. Rh1 {[%emt 0:00:24]} Rxh1 {[%emt 0:00:09]} 28. Rxh1 {
[%emt 0:00:00]} Qe5 {[%emt 0:00:02]} 29. Nc6 {[%emt 0:00:10]} Qf6 {[%emt 0:00:
05]} 30. Bxc5 {[%emt 0:00:05]} Rxc5 {[%emt 0:00:00]} 31. Nd4 {[%emt 0:00:01]}
Rd5 {[%emt 0:00:09]} 32. a3 {[%emt 0:00:02]} Kd7 {[%emt 0:00:04]} 33. Rd1 {
[%emt 0:00:02]} Qe5 {[%emt 0:00:19]} 34. Qc2 {[%emt 0:00:08] .} Qd6 {[%emt 0:
00:02]} 35. Re1 {[%emt 0:00:08]} Kc7 {[%emt 0:00:02]} 36. Qb3 {[%emt 0:00:04]}
Kb6 {[%emt 0:00:02]} 37. Rc1 {[%emt 0:00:01]} Qc5 {[%emt 0:00:01]} 38. a4 {
[%emt 0:00:08]} Qc4 {[%emt 0:00:01]} 39. a5+ {[%emt 0:00:04]} Kc7 {[%emt 0:00:
03]} 40. Qa3 {[%emt 0:00:01]} Qc5 {[%emt 0:00:02]} 41. Qb3 {[%emt 0:00:02]} Qc4
{[%emt 0:00:01]} 42. Qa3 {[%emt 0:00:01]} Qc5 {[%emt 0:00:04]} 43. Qb3 {[%emt
0:00:03]} Qc4 {[%emt 0:00:12] (Lag: Av=0.38s, max=1.5s)} 1/2-1/2

[Event "Dutch Internet Championship Final"]
[Site "playchess.com #038132"]
[Date "2011.06.18"]
[Round "2.4"]
[White "Jan Smeets"]
[Black "Daanbrandenburg"]
[Result "0-1"]
[ECO "C02"]
[WhiteElo "2813"]
[BlackElo "2730"]
[PlyCount "52"]
[EventDate "2011.06.18"]
[EventType "match (blitz)"]
[TimeControl "180+3"]

1. e4 {[%emt 0:00:02]} e6 {[%emt 0:00:02]} 2. d4 {[%emt 0:00:01]} d5 {[%emt 0:
00:01]} 3. e5 {[%emt 0:00:00]} c5 {[%emt 0:00:01]} 4. c3 {[%emt 0:00:00]} Nc6 {
[%emt 0:00:00]} 5. Nf3 {[%emt 0:00:00]} Qb6 {[%emt 0:00:02]} 6. a3 {[%emt 0:00:
02]} Nh6 {[%emt 0:00:01]} 7. b4 {[%emt 0:00:03]} cxd4 {[%emt 0:00:02]} 8. cxd4
{[%emt 0:00:01]} Nf5 {[%emt 0:00:00]} 9. Be3 {[%emt 0:00:03]} Bd7 {[%emt 0:00:
01]} 10. Nc3 {[%emt 0:00:03]} Rc8 {[%emt 0:00:06]} 11. Na4 {[%emt 0:00:06]} Qd8
{[%emt 0:00:21]} 12. Bd3 {[%emt 0:00:05]} Nxe3 {[%emt 0:00:25]} 13. fxe3 {
[%emt 0:00:00]} Be7 {[%emt 0:00:06]} 14. O-O {[%emt 0:00:03]} O-O {[%emt 0:00:
01]} 15. e4 {[%emt 0:00:23]} Nxd4 {[%emt 0:00:16]} 16. Nxd4 {[%emt 0:00:52]}
Bxa4 {[%emt 0:00:02]} 17. Qxa4 {[%emt 0:00:00]} dxe4 {[%emt 0:00:01]} 18. Nxe6
{[%emt 0:00:22]} fxe6 {[%emt 0:00:01]} 19. Be2 {[%emt 0:00:08]} Qd4+ {[%emt 0:
00:02]} 20. Kh1 {[%emt 0:00:01]} Qxe5 {[%emt 0:00:09]} 21. Qxa7 {[%emt 0:00:07]
} Bd6 {[%emt 0:00:12]} 22. g3 {[%emt 0:00:02]} Rc2 {[%emt 0:00:02]} 23. Qe3 {
[%emt 0:00:22]} Rf3 {[%emt 0:00:29]} 24. Bxf3 {[%emt 0:00:13]} Rxh2+ {[%emt 0:
00:03]} 25. Kxh2 {[%emt 0:00:10]} Qxg3+ {[%emt 0:00:01]} 26. Kh1 {[%emt 0:00:
01]} Qh2# {[%emt 0:00:01] (Lag: Av=0.20s, max=0.4s)} 0-1

[Event "Dutch Internet Championship Final"]
[Site "playchess.com #038132"]
[Date "2011.06.18"]
[Round "2.4"]
[White "kingloek"]
[Black "Erikerik"]
[Result "1-0"]
[ECO "E39"]
[WhiteElo "2891"]
[BlackElo "2666"]
[PlyCount "115"]
[EventDate "2011.06.18"]
[EventType "match (blitz)"]
[TimeControl "180+3"]

1. d4 {[%emt 0:00:01]} Nf6 {[%emt 0:00:01]} 2. c4 {[%emt 0:00:01]} e6 {[%emt 0:
00:01]} 3. Nc3 {[%emt 0:00:01]} Bb4 {[%emt 0:00:01]} 4. Qc2 {[%emt 0:00:01]} c5
{[%emt 0:00:09]} 5. dxc5 {[%emt 0:00:03]} O-O {[%emt 0:00:01]} 6. a3 {[%emt 0:
00:05]} Bxc5 {[%emt 0:00:01]} 7. Nf3 {[%emt 0:00:03]} Nc6 {[%emt 0:00:02]} 8.
Bg5 {[%emt 0:00:10]} b6 {[%emt 0:00:02]} 9. e3 {[%emt 0:00:09]} Bb7 {[%emt 0:
00:06]} 10. Bd3 {[%emt 0:00:05]} h6 {[%emt 0:00:01]} 11. Bh4 {[%emt 0:00:01]}
Be7 {[%emt 0:00:03]} 12. O-O {[%emt 0:00:04]} Rc8 {[%emt 0:00:03]} 13. Rfd1 {
[%emt 0:00:07]} Na5 {[%emt 0:00:11]} 14. Qe2 {[%emt 0:00:01]} d5 {[%emt 0:00:
54]} 15. cxd5 {[%emt 0:00:38]} Nxd5 {[%emt 0:00:04]} 16. Nxd5 {[%emt 0:00:05]}
Bxd5 {[%emt 0:00:18]} 17. Bg3 {[%emt 0:00:02]} Qe8 {[%emt 0:00:11]} 18. Ne5 {
[%emt 0:00:18]} Bf6 {[%emt 0:00:11]} 19. Bb5 {[%emt 0:00:20]} Qe7 {[%emt 0:00:
04]} 20. e4 {[%emt 0:00:40]} Bb3 {[%emt 0:00:20]} 21. Rd2 {[%emt 0:00:30]} Qc5
{[%emt 0:00:09]} 22. Nd7 {[%emt 0:00:10]} Qc1+ {[%emt 0:00:10]} 23. Rxc1 {
[%emt 0:00:13]} Rxc1+ {[%emt 0:00:02]} 24. Qf1 {[%emt 0:00:01]} Rxf1+ {[%emt 0:
00:23]} 25. Kxf1 {[%emt 0:00:02]} Rc8 {[%emt 0:00:03]} 26. Nxf6+ {[%emt 0:00:
02]} gxf6 {[%emt 0:00:02]} 27. Ke2 {[%emt 0:00:13]} Rc5 {[%emt 0:00:15]} 28.
Bd3 {[%emt 0:00:02]} Rc1 {[%emt 0:00:08]} 29. f3 {[%emt 0:00:04]} Ba4 {[%emt 0:
00:15]} 30. Ke3 {[%emt 0:00:07]} Kg7 {[%emt 0:00:06]} 31. Bb8 {[%emt 0:00:03]}
Nc6 {[%emt 0:00:02]} 32. Bd6 {[%emt 0:00:03]} e5 {[%emt 0:00:06]} 33. f4 {
[%emt 0:00:02]} Re1+ {[%emt 0:00:04]} 34. Re2 {[%emt 0:00:02]} Rh1 {[%emt 0:00:
02]} 35. h3 {[%emt 0:00:01]} exf4+ {[%emt 0:00:04]} 36. Bxf4 {[%emt 0:00:02]}
Ne5 {[%emt 0:00:01]} 37. Bxe5 {[%emt 0:00:10]} fxe5 {[%emt 0:00:01]} 38. Bc4 {
[%emt 0:00:01]} Bc6 {[%emt 0:00:09]} 39. Rc2 {[%emt 0:00:05]} Re1+ {[%emt 0:00:
03]} 40. Be2 {[%emt 0:00:01]} Bb5 {[%emt 0:00:02]} 41. Kf2 {[%emt 0:00:01]}
Rxe2+ {[%emt 0:00:01]} 42. Rxe2 {[%emt 0:00:01]} Bxe2 {[%emt 0:00:01]} 43. Kxe2
{[%emt 0:00:01]} Kf6 {[%emt 0:00:01]} 44. Kf3 {[%emt 0:00:01]} Kg5 {[%emt 0:00:
01]} 45. Kg3 {[%emt 0:00:02]} h5 {[%emt 0:00:07]} 46. Kf3 {[%emt 0:00:04]} b5 {
[%emt 0:00:07]} 47. b4 {[%emt 0:00:09]} a6 {[%emt 0:00:03]} 48. g3 {[%emt 0:00:
02]} h4 {[%emt 0:00:06]} 49. gxh4+ {[%emt 0:00:04]} Kxh4 {[%emt 0:00:01]} 50.
Kg2 {[%emt 0:00:01]} f6 {[%emt 0:00:02]} 51. Kh2 {[%emt 0:00:01]} Kg5 {[%emt 0:
00:10]} 52. Kg3 {[%emt 0:00:01]} f5 {[%emt 0:00:03]} 53. exf5 {[%emt 0:00:01]}
Kxf5 {[%emt 0:00:01]} 54. Kf3 {[%emt 0:00:01]} Kg5 {[%emt 0:00:06]} 55. Ke4 {
[%emt 0:00:01]} Kh4 {[%emt 0:00:01]} 56. Kxe5 {[%emt 0:00:01]} Kxh3 {[%emt 0:
00:01]} 57. Kd5 {[%emt 0:00:01]} Kg4 {[%emt 0:00:01]} 58. Kc5 {[%emt 0:00:01]
Erikerik geeft op  (Lag: Av=0.62s, max=5.3s)} 1-0

[Event "Dutch Internet Championship Final"]
[Site "playchess.com #038132"]
[Date "2011.06.18"]
[Round "2.4"]
[White "Reinderman"]
[Black "Christov"]
[Result "1-0"]
[ECO "A11"]
[WhiteElo "2507"]
[BlackElo "2478"]
[PlyCount "49"]
[EventDate "2011.06.18"]
[EventType "match (blitz)"]
[TimeControl "180+3"]

1. c4 {[%emt 0:00:02]} c6 {[%emt 0:00:01]} 2. g3 {[%emt 0:00:02]} d5 {[%emt 0:
00:01]} 3. Nf3 {[%emt 0:00:01]} Nf6 {[%emt 0:00:01]} 4. Bg2 {[%emt 0:00:01]}
Bg4 {[%emt 0:00:04]} 5. Ne5 {[%emt 0:00:02]} Be6 {[%emt 0:00:11]} 6. cxd5 {
[%emt 0:00:01]} Bxd5 {[%emt 0:00:03]} 7. Nf3 {[%emt 0:00:01]} e5 {[%emt 0:00:
05]} 8. Nc3 {[%emt 0:00:02]} e4 {[%emt 0:00:01]} 9. Ng5 {[%emt 0:00:11]} e3 {
[%emt 0:00:08]} 10. Nxd5 {[%emt 0:00:02]} exf2+ {[%emt 0:00:03]} 11. Kxf2 {
[%emt 0:00:01]} Bc5+ {[%emt 0:00:11]} 12. d4 {[%emt 0:00:13]} Ng4+ {[%emt 0:00:
21]} 13. Kg1 {[%emt 0:00:08]} cxd5 {[%emt 0:00:09]} 14. dxc5 {[%emt 0:00:04]}
O-O {[%emt 0:00:13]} 15. h3 {[%emt 0:00:16]} Nf6 {[%emt 0:00:03]} 16. Kh2 {
[%emt 0:00:04]} Qe7 {[%emt 0:00:03]} 17. b4 {[%emt 0:00:19]} Nc6 {[%emt 0:00:
05]} 18. Bf4 {[%emt 0:00:13]} Nh5 {[%emt 0:00:26]} 19. Qd2 {[%emt 0:00:16]} h6
{[%emt 0:00:14]} 20. Nf3 {[%emt 0:00:02]} Rfe8 {[%emt 0:00:07]} 21. Rhe1 {
[%emt 0:00:03]} Qf6 {[%emt 0:00:10]} 22. b5 {[%emt 0:00:09]} Ne7 {[%emt 0:00:
03]} 23. Nd4 {[%emt 0:00:10]} Ng6 {[%emt 0:00:04]} 24. Bd6 {[%emt 0:00:06]} Qf2
{[%emt 0:00:10]} 25. Rf1 {[%emt 0:00:07] Christov geeft op  (Lag: Av=0.23s,
max=0.6s)} 1-0